Cogmind - Beta 16 @@@ ROGUE MODE // 2025.11.17 @ 22:50:30 Player: guru-sr Result: Self-destructed Performance ------------- Evolutions (3) 1500 Regions Visited (7) 1400 Robots Destroyed (141) 705 Value Destroyed (5700) 5700 Prototype IDs (20) 400 Alien Tech Used (0) 0 Bonus (3779) 3779 TOTAL SCORE: 13484 Bonus ------- High Alert Combat Kills 768 Follower Combat Kills 611 Entered Garrisons 400 Used RIF Installer 2000 Cogmind --------- Core Integrity 661/700 Matter 222/300 Energy 621/660 System Corruption 2% Temperature Cool (0) Movement Rolling (160) Ox4 Location -7/Factory Parts ------- > --- POWER (1+2) ------ Cooled Ion Engine (+) Cooled Ion Engine (+) Angular Momentum Engine > --- PROPULSION (4) --- Light Treads Light Treads Armored Huge Wheel > --- UTILITY (5) ------ Huge Storage Unit Hardlight Generator Remote Shield Relay Coupler [NC] (30) Power Bank > --- WEAPON (3) ------- Advanced Beam Rifle Gauss Rifle Multitool > --- INVENTORY (25) --- Improved Treads Advanced Terrain Scan Processor Improved Light Armor Plating Improved Medium Armor Plating Layered Light Armor Plating Thermal Shield Hacking Suite Hacking Suite Hacking Suite System Shield System Shield Relay Coupler [Swarmer] (43) Relay Coupler [Grunt] (37) Relay Coupler [Grunt] (35) Relay Coupler [Heavy] (23) High-powered Tractor Beam Advanced Beam Rifle Powered Cannon Improved Assault Rifle Minigun Minigun Mini Grenade Launcher Remote Datajack Scythe Peak State ------------ > --- POWER ------------ Cooled Ion Engine Cooled Ion Engine Angular Momentum Engine Fission Core > --- PROPULSION ------- Light Treads Light Treads Armored Huge Wheel > --- UTILITY ---------- Huge Storage Unit Hardlight Generator Remote Shield Relay Coupler [NC] Power Bank > --- WEAPON ----------- Advanced Beam Rifle Gauss Rifle Multitool > --- INVENTORY -------- Improved Treads Advanced Terrain Scan Processor Improved Light Armor Plating Improved Medium Armor Plating Layered Light Armor Plating Thermal Shield Hacking Suite Hacking Suite Hacking Suite System Shield System Shield Relay Coupler [Swarmer] Relay Coupler [Grunt] Relay Coupler [Grunt] Relay Coupler [Heavy] High-powered Tractor Beam Advanced Beam Rifle Powered Cannon Improved Assault Rifle Minigun Minigun Mini Grenade Launcher Remote Datajack Scythe [Rating: 64] Favorites ----------- Power Cooled Ion Engine Engine Cooled Ion Engine Power Core Fission Core Propulsion Armored Wheel Treads Light Treads Leg Aluminum Leg Wheel Armored Wheel Utility Huge Storage Unit Device Power Bank Storage Huge Storage Unit Processor Advanced Targeting Computer Hackware Relay Coupler [Sentry] Protection Hardened Light Armor Plating Weapon Minigun Energy Gun Improved Medium Laser Energy Cannon Subdweller Beam Cannon Ballistic Gun Minigun Launcher Mini Grenade Launcher Special Weapon Remote Datajack Slashing Weapon Scythe Special Melee Weapon Improved Datajack Build | -11 -10 -10 -8 -8 -8 -8 -7 ------- Run | Yrd Mat Sub Mat Gar Mat Gar Fac Slots Evolved 6 | . . . 4 . . . 2 Power . | . . . . . . . . Propulsion 2 | . . . 2 . . . . Utility 3 | . . . 1 . . . 2 Weapon 1 | . . . 1 . . . . Parts Attached 118 | 8 18 20 37 20 1 5 9 Power 19 | 1 4 5 4 5 . . . Engine 14 | 1 4 5 2 2 . . . Core 5 | . . . 2 3 . . . Reactor . | . . . . . . . . Propulsion 32 | 4 5 2 12 5 . 1 3 Treads 19 | 2 2 . 7 5 . 1 2 Leg 2 | . . . 2 . . . . Wheel 11 | 2 3 2 3 . . . 1 Hover . | . . . . . . . . Flight . | . . . . . . . . Utility 31 | 1 4 5 7 6 1 2 5 Device 8 | . 1 3 . 2 . . 2 Storage 5 | 1 3 . 1 . . . . Processor 3 | . . 1 1 . . . 1 Hackware 8 | . . . . 3 1 2 2 Protection 7 | . . 1 5 1 . . . Artifact . | . . . . . . . . Weapon 36 | 2 5 8 14 4 . 2 1 Energy Gun 9 | . 3 . 6 . . . . Energy Cannon 1 | . . 1 . . . . . Ballistic Gun 16 | 2 . 7 5 1 . . 1 Ballistic Cannon . | . . . . . . . . Launcher 4 | . 1 . 1 1 . 1 . Special Weapon 4 | . 1 . 1 1 . 1 . Impact Weapon . | . . . . . . . . Slashing Weapon 1 | . . . 1 . . . . Piercing Weapon . | . . . . . . . . Special Melee Weapon 1 | . . . . 1 . . . Unidentified Prototypes 6 | . 2 . 3 . . . 1 Corrupted Parts 1 | . . . . . . . 1 System Corruption 1 | . . . . . . . 1 Parts Lost 8 | . . 2 2 1 . . 3 Power 2 | . . 1 . . . . 1 Propulsion 3 | . . . 2 1 . . . Utility 2 | . . 1 . . . . 1 Weapon 1 | . . . . . . . 1 Highest Loss Streak 1 | . . 1 1 1 . . 1 To Critical Strikes . | . . . . . . . . Average Backups 22 | 4 19 24 23 23 23 23 23 Power 1 | . 1 2 2 1 . . . Propulsion 2 | 2 4 3 1 1 1 2 2 Utility 10 | . 6 9 10 14 16 14 13 Weapon 6 | . 6 7 7 5 4 4 6 Tool/Special . | . . . . . . . . Unused Backups 41 | 1 3 4 11 3 . 3 16 Power 1 | . 1 . . . . . . Propulsion 2 | 1 1 . . . . . . Utility 28 | . . 1 7 3 . 3 14 Weapon 9 | . 1 3 3 . . . 2 Tool/Special 1 | . . . 1 . . . . Average Slot Usage (%) 98 | . 99 98 99 98 97 100 97 Engine 11 | . 13 12 1 7 21 21 18 Core 3 | . . . 7 5 7 7 5 Treads 14 | . 12 14 14 16 14 14 12 Wheel 15 | . 14 14 17 16 13 14 11 Device 6 | . 13 7 . 2 7 7 16 Storage 10 | . 14 14 9 8 7 7 6 Processor 2 | . . 1 9 3 . . . Hackware 1 | . . . . 5 7 6 6 Protection 4 | . . 4 8 5 . . . Energy Gun 6 | . 11 2 9 1 3 7 5 Ballistic Gun 16 | . 13 22 15 19 9 5 6 Special Weapon 1 | . 2 . . . 4 3 4 Peak Build Rating 64 | 6 17 20 38 55 57 57 64 Average Rating 29 | 4 14 17 31 39 55 55 59 On Entrance 30 | . 6 15 17 34 55 57 56 Avg Prop Armor Cover (%) 12 | 12 11 11 12 12 13 13 11 Naked Turns . | . . . . . . . . Heaviest Build 141 | 13 94 100 104 130 130 130 141 Greatest Support 89 | 10 24 20 63 89 24 24 28 Greatest Overweight (x) 10 | 4 7 8 8 10 10 5 5 Average Overweight (x) 4 | 1 4 6 3 4 5 5 4 Largest Inventory Capacity 25 | 8 25 25 25 25 25 25 25 Average Capacity 24 | 7 21 25 25 25 25 25 25 Most Carried 25 | 7 25 25 25 25 25 25 25 Average Carried 23 | 4 19 24 24 24 24 24 24 Final Capacity 25 | 8 25 25 25 25 25 25 25 Final Carried 25 | 7 25 25 25 25 25 25 25 Class Distribution -------------------- 48% | Mutant 25% | Gunner 10% | Bothacker-Mutant 8% | Bothacker-Tank 7% | Bothacker-Gunner Dominant Class ---------------- Mutant | -10/Materials Mutant | -10/Subcaves Gunner | -8/Materials Bothacker-Mutant | -8/Garrison Bothacker-Gunner | -8/Materials Bothacker-Gunner | -8/Garrison Bothacker-Tank | -7/Factory Resources | -11 -10 -10 -8 -8 -8 -8 -7 ----------- Run | Yrd Mat Sub Mat Gar Mat Gar Fac Matter Collected 5803 | 326 453 975 1446 1245 106 712 540 Remotely 629 | . . . . 399 . 230 . Salvage Created 4686 | 113 566 372 2055 916 106 247 311 Parts 278 | 10 44 30 98 53 10 12 21 Haulers Intercepted 5 | . 1 . 4 . . . . Recyclers Shooed 2 | . 2 . . . . . . Parts Field Recycled . | . . . . . . . . Retrieved Matter . | . . . . . . . . Parts Self-Destructed 7 | . . 7 . . . . . Prevented . | . . . . . . . . Parts Restored . | . . . . . . . . Kills | -11 -10 -10 -8 -8 -8 -8 -7 ------- Run | Yrd Mat Sub Mat Gar Mat Gar Fac Combat Hostiles Destroyed 113 | . 20 14 33 30 1 7 8 Melee 1 | . . . . . 1 . . Guns 78 | . 15 12 26 14 . 5 6 AOE 31 | . 5 2 5 15 . 2 2 Classes Destroyed 17 | 2 6 2 4 1 . 1 1 Worker 2 | . . . 1 . 1 . . Builder 3 | . 1 . 1 . 1 . . Tunneler 4 | 2 . . 1 . 1 . . Hauler 5 | . 1 . 4 . . . . Recycler 2 | 1 . . 1 . . . . Operator 5 | . 1 . 2 . . . 2 Watcher 5 | . 1 . 3 1 . . . Swarmer 33 | . 12 3 4 10 . . 4 Cutter 3 | . . . . . . 3 . Grunt 43 | . 8 . 19 12 . 3 1 Brawler 2 | . . . 2 . . . . Duelist 1 | . . . 1 . . . . Protector 1 | . . . 1 . . . . Sentry 12 | . . 1 6 4 1 . . Hunter 2 | . . . . . . . 2 Programmer 6 | . . . . 4 . 1 1 Subdweller 10 | . . 10 . . . . . Thug 2 | . . . . 1 . 1 . Best Kill Streak 9 | 3 4 3 6 9 2 3 5 Combat Bots Only 9 | . 3 3 4 9 1 3 4 Max Kills in Single Turn 3 | 1 2 1 2 3 1 2 2 Gunslinging 1 | . . . 1 . . . 1 Exploded 3 | . 2 1 1 3 . 2 2 Melee 1 | . . . . . 1 . . Uniques/NPCs Destroyed . | . . . . . . . . Combat | -11 -10 -10 -8 -8 -8 -8 -7 -------- Run | Yrd Mat Sub Mat Gar Mat Gar Fac Hostile Shots Fired 374 | . 58 64 79 84 16 34 39 Missed 92 | . 20 15 17 19 5 9 7 Hits 282 | . 38 49 62 65 11 25 32 Melee 2 | . . . 2 . . . . Projectile 280 | . 38 49 60 65 11 25 32 AOE 4 | . . 1 . 1 . 2 . Critical Strikes 13 | . . 2 4 3 1 2 1 Damage Taken 4520 | . 348 881 1186 1065 161 480 399 Core 564 | . 65 149 120 119 14 58 39 Absorbed by Shields 48 | . . . . . . . 48 Redirected to Shielding 5 | . . . 5 . . . . Regen/Repaired (Parts) 348 | . 74 . 99 . 175 . . Core Remaining (%) 52 | 100 . 14 . . . 43 . Volleys Fired 388 | 9 69 67 92 70 4 44 33 Largest 3 | 2 2 2 3 3 1 3 3 Hottest 147 | 40 120 124 147 147 61 116 114 Shots Fired 778 | 18 115 109 249 160 4 66 57 Gun 638 | 18 89 77 240 131 3 32 48 Cannon 5 | . . 5 . . . . . Launcher 64 | . 3 5 2 25 . 28 1 Special 71 | . 23 22 7 4 1 6 8 Kinetic 418 | 18 45 71 138 106 . 16 24 Thermal 199 | . 67 33 31 25 3 16 24 Explosive 64 | . 3 5 2 25 . 28 1 Electromagnetic 78 | . . . 78 . . . . Robot Hit Streak 19 | 6 9 18 19 16 6 16 11 Robot Miss Streak 6 | 1 3 3 6 3 . 2 2 Penetration Max . | . . . . . . . . Secondary Targets 5 | . . 2 1 1 . . 1 Max Gunslinging Chain 1 | . . 1 1 1 . . 1 Shots Hit Robots 471 | 12 57 62 170 99 7 25 39 Core Hits 249 | 5 31 29 87 52 4 23 18 Critical Kills 2 | . . 1 1 . . . . Critical Parts Destroyed 1 | . . . 1 . . . . Critical Strikes 14 | . 3 1 4 4 . . 2 Burn 11 | . 3 . 2 4 . . 2 Destroy 3 | . . 1 2 . . . . Melee Attacks 59 | . . . 13 25 7 13 1 Impact . | . . . . . . . . Slashing 49 | . . . 13 15 7 13 1 Piercing . | . . . . . . . . Sneak Attacks 10 | . . . . 10 . . . Combat Hostiles . | . . . . . . . . Follow-up Attacks . | . . . . . . . . Damage Inflicted 11386 | 129 1089 1426 3630 3138 167 1032 775 Guns 8116 | 129 854 1221 3193 1602 64 401 652 Cannons 84 | . . 84 . . . . . Explosions 3083 | . 235 121 437 1536 . 631 123 Melee 103 | . . . . . 103 . . Ramming . | . . . . . . . . Kinetic 4858 | 129 327 1152 1517 1152 . 231 350 Thermal 2218 | . 527 153 552 450 64 170 302 Explosive 2857 | . 235 121 211 1536 . 631 123 Electromagnetic 1350 | . . . 1350 . . . . Impact . | . . . . . . . . Slashing 103 | . . . . . 103 . . Piercing . | . . . . . . . . Highest Corruption 5 | . 2 2 . 1 1 5 2 Average Corruption 2 | . 2 2 . 1 1 4 1 Corruption Purged . | . . . . . . . . Corruption Blocked . | . . . . . . . . Effects 115 | . 19 55 . 11 2 21 7 Message Errors 31 | . 4 14 . 4 . 8 1 Matter Fused 28 | . 4 12 . 3 1 7 1 Heat Flow Errors 15 | . . 11 . 1 . 2 1 Energy Discharges 11 | . 3 6 . 2 . . . Parts Fused 1 | . . 1 . . . . . Data Loss (minor) 15 | . 4 5 . 1 1 1 3 Data Loss (major) 5 | . 1 3 . . . 1 . Misfires 5 | . 2 2 . . . 1 . Alerts 1 | . . . . . . 1 . Weapon Failures 3 | . 1 1 . . . . 1 Overload Shots . | . . . . . . . . Overflow Damage 110 | . . . 36 74 . . . Projectiles . | . . . . . . . . Explosions 110 | . . . 36 74 . . . Melee . | . . . . . . . . Knockbacks . | . . . . . . . . Impact . | . . . . . . . . Kinetic . | . . . . . . . . Secondary . | . . . . . . . . Self-Inflicted Damage 423 | . . . 230 142 . 51 . Shots 12 | . . . 4 5 . 3 . Rammed . | . . . . . . . . Targets Rammed . | . . . . . . . . Kicked . | . . . . . . . . Crushed . | . . . . . . . . Highest Temperature 534 | . 126 253 341 534 42 388 306 Average Temperature 87 | . 29 97 93 121 20 99 99 Received Heat Transfer 1231 | . 102 123 477 336 63 81 49 Effects 13 | . . . 2 6 . 3 2 Shutdowns 4 | . . . 1 2 . 1 . Energy Bleed 5 | . . . 1 2 . 2 . Interference 2 | . . . . . . . 2 Damage (minor) 2 | . . . . 2 . . . Siege Activations . | . . . . . . . . Martial Activations . | . . . . . . . . Shielding Activations . | . . . . . . . . Robots Disrupted 1 | . . . 1 . . . . Combat Hostiles 1 | . . . 1 . . . . Robots Corrupted 2 | . . . 2 . . . . Combat Hostiles 2 | . . . 2 . . . . Parts Fried 12 | . . . 12 . . . . Impact Corruptions . | . . . . . . . . Robots Melted 1 | . . . . 1 . . . Combat Hostiles 1 | . . . . 1 . . . Parts Melted 13 | . 3 . 1 5 . . 4 Heat Transferred 4627 | . 1332 259 964 999 111 296 666 Parts Sabotaged . | . . . . . . . . Parts Stolen . | . . . . . . . . Parts Stripped . | . . . . . . . . Power Chain Reactions 3 | . . . 3 . . . . Alert | -11 -10 -10 -8 -8 -8 -8 -7 ------- Run | Yrd Mat Sub Mat Gar Mat Gar Fac Maximum Alert Level 4 | . . . 2 4 3 4 2 Low Security (%) 40 | 100 100 . 41 . . . 21 Level 1 11 | . . . 15 11 . . 58 Level 2 20 | . . . 42 10 39 17 19 Level 3 13 | . . . . 30 60 45 . Level 4 13 | . . . . 48 . 36 . Level 5 . | . . . . . . . . High Security . | . . . . . . . . Max Security . | . . . . . . . . Peak Influence 1542 | 10 137 . 604 1542 752 1303 683 Initial 751 | . . . . 299 751 419 683 Average 468 | 1 36 . 270 1062 705 991 333 Influence Increases 4633 | 15 635 90 1224 1373 54 964 278 Destroy 0b10 Robot/C 2380 | . 400 80 640 660 20 420 160 Destroy 0b10 Robot/NC 135 | 15 20 . 70 5 15 . 10 Destroy Leader 298 | . 64 10 134 10 10 30 40 Allied During Kill 137 | . . . . 29 2 97 9 Successful Hack 141 | . 32 . 69 . 4 23 13 Select Force Hacks 90 | . 60 . 30 . . . . Disable Machine 150 | . . . 60 30 . 30 30 Anti-Garrison Action 600 | . . . . 450 . 150 . Destroy Structure 492 | . 44 . 86 159 3 184 16 Lose Combat Pursuer 210 | . 15 . 135 30 . 30 . Influence Decreases 4479 | 15 536 189 763 292 951 306 1427 Entered New Map 1847 | . . 48 . 162 791 226 620 Time Decay 1797 | 15 536 141 583 . 160 . 362 Lost Part 50 | . . . 10 10 . . 30 Lost Ally 260 | . . . 20 120 . 80 40 Purge Threat 525 | . . . 150 . . . 375 Squads Dispatched 11 | . 3 . 5 . . . 3 Investigation 4 | . 2 . 2 . . . . Extermination 1 | . . . . . . . 1 Reinforcement 4 | . 1 . 1 . . . 2 Assault 1 | . . . 1 . . . . Garrison 1 | . . . 1 . . . . Intercept . | . . . . . . . . Searches Triggered . | . . . . . . . . Construction Impeded . | . . . . . . . . Haulers Reinforced . | . . . . . . . . Active Scanning Responses . | . . . . . . . . Cargo Convoy Interrupts . | . . . . . . . . Stealth | -11 -10 -10 -8 -8 -8 -8 -7 --------- Run | Yrd Mat Sub Mat Gar Mat Gar Fac Distress Signals 3 | . 1 . 1 1 . . . Communications Jammed . | . . . . . . . . Distress Signals . | . . . . . . . . Times Spotted 172 | . 35 15 54 32 2 21 13 Peak Tracking Total 8 | . 5 3 5 8 2 5 4 Tactical Retreats 10 | . 1 . 6 1 . 2 . Traps | -11 -10 -10 -8 -8 -8 -8 -7 ------- Run | Yrd Mat Sub Mat Gar Mat Gar Fac Traps Triggered 5 | . 2 . 1 2 . . . Indirectly . | . . . . . . . . Trap Hack Attempts . | . . . . . . . . Triggered . | . . . . . . . . Disarmed . | . . . . . . . . Reprogrammed . | . . . . . . . . Reused . | . . . . . . . . Traps Extracted . | . . . . . . . . Installed . | . . . . . . . . Triggered . | . . . . . . . . Machines | -11 -10 -10 -8 -8 -8 -8 -7 ---------- Run | Yrd Mat Sub Mat Gar Mat Gar Fac Machines Disabled 18 | . . 1 4 7 . 4 2 Max in Single Turn 2 | . . 1 2 2 . 1 1 Garrison Relay 7 | . . . . 5 . 2 . Machines Repaired . | . . . . . . . . Machines Dismantled . | . . . . . . . . Machines Sabotaged . | . . . . . . . . Overloaded Fab Kills . | . . . . . . . . Hacking | -11 -10 -10 -8 -8 -8 -8 -7 --------- Run | Yrd Mat Sub Mat Gar Mat Gar Fac Machines Accessed 41 | . 11 2 15 2 3 2 6 Terminals 27 | . 8 . 10 2 1 2 4 Fabricators . | . . . . . . . . Repair Stations 4 | . 1 . 1 . 1 . 1 Recycling Units 3 | . 2 . 1 . . . . Scanalyzers 3 | . . . 2 . . . 1 Garrison Access 2 | . . . 1 . 1 . . Total Hacks 128 | . 36 13 47 3 13 3 13 Successful 86 | . 22 13 31 2 10 2 6 Failed 41 | . 14 . 15 1 3 1 7 Catastrophic 4 | . 3 . . . . 1 . Database Lockouts 1 | . . . 1 . . . . Manual 72 | . 26 . 31 1 6 1 7 Terminals 81 | . 25 . 33 3 7 3 10 Fabricators . | . . . . . . . . Repair Stations 16 | . 6 . 4 . 5 . 1 Recycling Units 7 | . 5 . 2 . . . . Scanalyzers 8 | . . . 6 . . . 2 Garrison Access 3 | . . . 2 . 1 . . Terminal Hacks 37 | . 6 13 8 2 4 2 2 Record 12 | . . 12 . . . . . Part Schematic 1 | . 1 . . . . . . Robot Schematic 1 | . . . 1 . . . . Robot Analysis 12 | . 4 . 3 . 4 . 1 Open Door 2 | . . . . 1 . 1 . Terminal Index 3 | . 1 . 1 . . . 1 Garrison Index 1 | . . . 1 . . . . Unreport Threat 1 | . . . 1 . . . . Recall Investigation 1 | . . . 1 . . . . Garrison Registry 2 | . . . . 1 . 1 . Proto ID Catalog 1 | . . 1 . . . . . Fabricator Hacks . | . . . . . . . . Repair Station Hacks 14 | . 6 . 4 . 4 . . Scan Component 7 | . 3 . 2 . 2 . . Repair 7 | . 3 . 2 . 2 . . Recycling Unit Hacks 3 | . 2 . 1 . . . . Report Inventory 3 | . 2 . 1 . . . . Scanalyzer 7 | . . . 6 . . . 1 Insert Component 1 | . . . 1 . . . . Analyze 2 | . . . 2 . . . . Retrieve Study 4 | . . . 3 . . . 1 Garrison Access Hacks 2 | . . . 1 . 1 . . Unlock Access 2 | . . . 1 . 1 . . Unauthorized Hacks 23 | . 8 . 11 . 1 . 3 Terminals 19 | . 5 . 10 . 1 . 3 Assimilate 5 | . 2 . 3 . . . . Botnet 5 | . 1 . 2 . . . 2 Operators 3 | . 1 . 1 . . . 1 Skim 6 | . 1 . 4 . 1 . . Fabricators . | . . . . . . . . Repair Stations . | . . . . . . . . Recycling Units 4 | . 3 . 1 . . . . Recyclers 1 | . 1 . . . . . . Tunnel 3 | . 2 . 1 . . . . Scanalyzers . | . . . . . . . . Garrison Access . | . . . . . . . . Data Cores Recovered 1 | . . . . . . . 1 Used . | . . . . . . . . Hacking Detections 31 | . 8 . 13 . 2 2 6 Full Trace Events 1 | . . . . . . 1 . Feedback Events . | . . . . . . . . Feedback Blocked . | . . . . . . . . Robot Schematics Acquired 1 | . . . 1 . . . . Robots Built . | . . . . . . . . Authchips . | . . . . . . . . Time . | . . . . . . . . Total Robot Build Rating . | . . . . . . . . Part Schematics Acquired 2 | . 1 . 1 . . . . Parts Built . | . . . . . . . . Authchips . | . . . . . . . . Time . | . . . . . . . . Total Part Build Rating . | . . . . . . . . Part Studies Acquired 4 | . . . 3 . . . 1 Parts Repaired 7 | . 3 . 2 . 2 . . Time 265 | . 121 . 52 . 92 . . Parts Recycled . | . . . . . . . . Recycled Matter . | . . . . . . . . Retrieved Matter . | . . . . . . . . Retrieved Components . | . . . . . . . . Parts Scanalyzed 1 | . . . 1 . . . . Part Schematics Acquired 1 | . . . 1 . . . . Parts Damaged . | . . . . . . . . Bothacking | -11 -10 -10 -8 -8 -8 -8 -7 ------------ Run | Yrd Mat Sub Mat Gar Mat Gar Fac Used RIF Installer 4 | . . . . 2 . 2 . Coupler Efficiency 1 | . . . . 1 . . . Signal Jammer 1 | . . . . . . 1 . Watcher Feeds 1 | . . . . . . 1 . Robots Hacked 9 | . . . . 3 1 2 3 Non-combat 3 | . . . . . . . 3 Combat 6 | . . . . 3 1 2 . Robot Hacks Applied 12 | . . . . 3 1 2 6 ignore_repairs 1 | . . . . . . . 1 drop_inventory 1 | . . . . . . . 1 purge_threat 3 | . . . . . . . 3 find_terminals 1 | . . . . . . . 1 formatsys_high 6 | . . . . 3 1 2 . Relay Couplers Released 39 | . . . . 26 . 13 . Machine Destruction 31 | . . . . 22 . 9 . Programmers 8 | . . . . 4 . 4 . Attached 8 | . . . . 3 1 2 2 Fabnet Peak Effective % . | . . . . . . . . Robots Rewired 8 | . . . . 5 . 3 . Allies Hacked . | . . . . . . . . Hacks Repelled . | . . . . . . . . Allies | -11 -10 -10 -8 -8 -8 -8 -7 -------- Run | Yrd Mat Sub Mat Gar Mat Gar Fac Total Allies 17 | . 1 . 2 8 1 5 . Largest Group 5 | . 1 1 1 3 2 5 2 Highest-Rated Group 132 | . 10 10 10 56 31 132 54 Highest-Rated Ally 39 | . 10 10 10 31 16 39 39 Total Orders 65 | . 1 12 2 21 2 27 . STAY 28 | . 1 7 1 7 2 10 . FOLLOW 8 | . . 5 1 2 . . . GUARD 29 | . . . . 12 . 17 . Ally Attacks 79 | . . . . 16 . 57 6 Total Damage 1111 | . . . . 285 . 780 46 Kills 17 | . . . . 3 . 14 . Allies Corrupted 2 | . . . . 2 . . . Allies Melted . | . . . . . . . . Intel | -11 -10 -10 -8 -8 -8 -8 -7 ------- Run | Yrd Mat Sub Mat Gar Mat Gar Fac Active Infowar (turns) 4367 | . 2303 2064 . . . . . Optics 1171 | . . 1171 . . . . . Terrain 2374 | . 2303 71 . . . . . Seismic 822 | . . 822 . . . . . Robot Analysis Total 12 | . 4 . 3 . 4 . 1 Derelict Logs Recovered 1 | . . 1 . . . . . Drone Launches . | . . . . . . . . Drone Recoveries . | . . . . . . . . Exploration | -11 -10 -10 -8 -8 -8 -8 -7 ------------- Run | Yrd Mat Sub Mat Gar Mat Gar Fac Turns Passed 13479 | 133 2365 3865 2955 1875 328 1121 837 Spaces Moved 6802 | 67 1168 1843 1587 1028 129 578 402 Core 25 | 25 . . . . . . . Treads 5 | . . . 2 3 . . . Legs . | . . . . . . . . Wheels 6772 | 42 1168 1843 1585 1025 129 578 402 Hover . | . . . . . . . . Flight . | . . . . . . . . Fastest Speed 50 | 50 90 150 125 125 155 155 155 Average Speed 159 | 116 155 192 139 142 156 155 155 Slowest Speed 320 | 250 195 210 320 240 230 155 160 Overloaded Moves . | . . . . . . . . Propulsion Burnouts . | . . . . . . . . Robots Hopped . | . . . . . . . . Potential Cave-ins . | . . . . . . . . Cave-ins Triggered . | . . . . . . . . Exploration Rate (%) 48 | 4 95 61 75 68 10 64 12 Regions Visited 7 Branch Regions 1 Pre-discovered Areas 3 | . 2 . 1 . . . . Known Exits Taken 2 | . . . 1 . 1 . . Unknown Exits Taken 3 | 1 1 1 . . . . . Scrap Searched 5 | . . 5 . . . . . Spaces Dug 62 | . 22 . 19 . 3 17 1 Terrain Destroyed 437 | . 40 29 80 143 3 127 15 Melee 17 | . . . 13 . 3 . 1 Projectile 41 | . 22 2 16 . . . 1 AOE 379 | . 18 27 51 143 . 127 13 Terrain Rammed . | . . . . . . . . Walls Destroyed . | . . . . . . . . Machines Disabled . | . . . . . . . . Actions | -11 -10 -10 -8 -8 -8 -8 -7 --------- Run | Yrd Mat Sub Mat Gar Mat Gar Fac Total 8554 | 102 1544 2005 2098 1295 239 721 550 Wait 731 | 7 219 27 217 47 94 45 75 Move 6794 | 66 1167 1842 1586 1026 128 577 402 Hop . | . . . . . . . . Pick Up 110 | 10 31 10 30 13 1 7 8 Fast Attach 56 | 4 4 6 27 11 2 1 1 Attach 30 | 2 4 3 8 4 . 3 6 Detach 3 | . . 1 1 1 . . . Swap 223 | 3 33 27 63 57 3 22 15 Drop 132 | 1 17 22 54 24 . 8 6 Fire 388 | 9 69 67 92 70 4 44 33 Melee 59 | . . . 13 25 7 13 1 Ram . | . . . . . . . . Kick . | . . . . . . . . Crush . | . . . . . . . . Escape Stasis 16 | . . . . 16 . . . Rewire . | . . . . . . . . Trap . | . . . . . . . . Miscellaneous 12 | . . . 7 1 . 1 3 Route ------- -11/Scrapyard -10/Materials (discovered 6 exits: [*Mat x3] / [*Min x2] / *Sub) -10/Subcaves -8/Materials (discovered 3 exits: *Fac x2 / Gar) -8/Garrison (discovered 3 exits: *Mat x3) -8/Materials -8/Garrison (discovered 3 exits: *Fac x3) -7/Factory History --------- Turn | Location | Event 6 | -11/Scrapyard | Discovered new exit (range 15) 134 | -11/Scrapyard | Entered Materials 315 | -10/Materials | Build established: Mutant 447 | -10/Materials | Discovered new exit (range 13) 843 | -10/Materials | Discovered new exit (range 15) 910 | -10/Materials | Discovered new exit (range 3) 911 | -10/Materials | Discovered new exit (range 15) 1272 | -10/Materials | Discovered new exit (range 11) 1574 | -10/Materials | Discovered new exit (range 5) 1827 | -10/Materials | Repaired Arm. Wheel 1879 | -10/Materials | Repaired Imp. Medium Laser 1918 | -10/Materials | Repaired Imp. Terrain Scanner 2499 | -10/Materials | Entered Subcaves 2499 | -10/Subcaves | Accompanied by 1 ally 2501 | -10/Subcaves | Discovered new exit (range 8) 2888 | -10/Subcaves | Visited Clippyterm 2894 | -10/Subcaves | Learned Research security intel 2894 | -10/Subcaves | Learned Factory stockpile data 3218 | -10/Subcaves | A swath of the cavern ceiling suddenly collapsed 3409 | -10/Subcaves | Core integrity fell below 50% 3535 | -10/Subcaves | Disturbed a concealed Subdweller 3671 | -10/Subcaves | Learned Materials emergency access door positions 3912 | -10/Subcaves | A Subdweller sparked back to life 3912 | -10/Subcaves | A Subdweller sparked back to life 3912 | -10/Subcaves | A Subdweller sparked back to life 3957 | -10/Subcaves | Found Prototype Device 4844 | -10/Subcaves | Shifting Twisted Machinery released Slug Cannon 5140 | -10/Subcaves | Visited 4L-MR0's lab 5153 | -10/Subcaves | Core integrity fell below 20% 5188 | -10/Subcaves | Identified Power Bank 5210 | -10/Subcaves | Found Powered Cannon 6364 | -10/Subcaves | Entered Materials 6364 | -8/Materials | Evolved 4 slots: Propulsion x2, Utility x1, Weapon x1 6670 | -8/Materials | Build established: Gunner 7128 | -8/Materials | Discovered new exit (range 3) 7371 | -8/Materials | Repaired Datajack 7424 | -8/Materials | Repaired Lgt. Treads+ 7870 | -8/Materials | Discovered new exit (range 9) 8364 | -8/Materials | First assault squad dispatched 8579 | -8/Materials | Garrison activated, responded to threat 9099 | -8/Materials | Central database locked down 9103 | -8/Materials | Identified exit to Garrison 9319 | -8/Materials | Entered Garrison 9451 | -8/Garrison | Discovered new exit (range 69) 9451 | -8/Garrison | Discovered new exit (range 67) 9451 | -8/Garrison | Discovered new exit (range 48) 9597 | -8/Garrison | Installed Relay Interface Framework 9629 | -8/Garrison | Garrison Relay disabled 9715 | -8/Garrison | Triggered checkpoint 9763 | -8/Garrison | Destroyed 9 combat bots 9838 | -8/Garrison | Expanded RIF knowledge: Coupler Efficiency 9861 | -8/Garrison | Triggered checkpoint 9905 | -8/Garrison | Triggered checkpoint 10006 | -8/Garrison | Lost 3 allies 10283 | -8/Garrison | Triggered checkpoint 10287 | -8/Garrison | Build established: Bothacker-Tank 10345 | -8/Garrison | Triggered checkpoint 10416 | -8/Garrison | Garrison Relay disabled 10446 | -8/Garrison | Garrison Relay disabled 10555 | -8/Garrison | Triggered checkpoint 10582 | -8/Garrison | Garrison Relay disabled 10698 | -8/Garrison | Attached Power Bank, gained temporary slots: Power x3 10842 | -8/Garrison | Build established: Bothacker-Mutant 11194 | -8/Garrison | Entered Materials 11194 | -8/Materials | Accompanied by 1 ally 11378 | -8/Materials | Repaired Arm. Wheel+ 11440 | -8/Materials | Repaired Adv. Beam Rifle 11520 | -8/Materials | Identified exit to Garrison 11522 | -8/Materials | Entered Garrison 11522 | -8/Garrison | Accompanied by 2 allies 11612 | -8/Garrison | Triggered checkpoint 11656 | -8/Garrison | Discovered new exit (range 61) 11656 | -8/Garrison | Discovered new exit (range 55) 11656 | -8/Garrison | Discovered new exit (range 102) 11741 | -8/Garrison | Build established: Bothacker-Gunner 11818 | -8/Garrison | Triggered checkpoint 11824 | -8/Garrison | Core integrity fell below 50% 11866 | -8/Garrison | Triggered checkpoint 12040 | -8/Garrison | Triggered checkpoint 12085 | -8/Garrison | Expanded RIF knowledge: Signal Jamming 12176 | -8/Garrison | Expanded RIF knowledge: Watcher Feeds 12307 | -8/Garrison | Spotted B-75 Beast 12551 | -8/Garrison | Garrison Relay disabled 12573 | -8/Garrison | Garrison Relay disabled 12643 | -8/Garrison | Entered Factory 12643 | -7/Factory | Accompanied by 2 allies 12643 | -7/Factory | Evolved 2 slots: Utility x2 13081 | -7/Factory | Build established: Bothacker-Tank 13480 | -7/Factory | Self-destructed Last Messages --------------- 13336_ >> Watcher Feeds: Feed link from W-25 Informer lost. 13340_ ALERT: Potential suspicious activity detected, Programmers report to Factory Zone 3T. 13350_ Dropped Arm. Wheel+. 13351_ Acquired Arm. Huge Wheel. 13378_ Fission Core destroyed. 13378_ Temporary Power slot lost. 13381_ Slug penetrates P-60 Hacker. 13384_ Gravmag System melted. 13384_ P-60 Hacker destroyed. 13410_ O-24 Administrator: "IFF HANDSHAKE FAILED. SECURING TERMINAL." 13410_ Slug penetrates Wall. 13413_ System corrupted: Gauss Rifle+ jammed. 13417_ ALERT: Hostiles spotted, dispatching reinforcements to Terminal F013. 13420_ >> Watcher Feeds: Established visual feed link with W-25 Informer. 13421_ R-06 Scavenger collects Imp. Heat Sink. 13425_ R-06 Scavenger collects Shock Rifle. 13430_ K-01 Serf cleans the Fusion Modulator. 13455_ >> Watcher Feeds: Feed link from W-25 Informer lost. Map ----- +----------------------------------------------------+ | ?????????????????????????????????????????????????? | | ?????????????????????????????????????????????????? | | ?????????????????????????????????????????????????? | | ?????????????????????????????????????????????????? | | ?????????????!???????????????????????????????????? | | ?????????????????????????????????????????????????? | | ?????????????????????????????????????????????????? | | ?????????????????????????????????????????????????? | | ?????????????????????????????????????????!???????? | | ?????????????????????????????????????????????????? | | ??????????????????????? ???????????????????????? | | ??????????????????????# ???????????????????????? | | ??????????????????????# ???????????????????????? | | ??????????????????????# ???????????????????????? | | ??????????????????????# ???????????????????????? | | ??????????????????????# ???????????????????????? | | ??????????????????????# k???????????????????????? | | ??????????????????????# #??????????????????????? | | ??????????????????????# #??????????????????????? | | ??????????????????????# ##########?????????????? | | ??????????????????????# # #?????????????? | | ??????????????????????# # #?????????????? | | ??????????????????????# # #?????????????? | | ??????????????????????# # #?????????????? | | ??????????????????????# # #?????????????? | | ??????????????????????# @/ #?????????????? | | ??????/???????????????# # #?????????????? | | ??????????????????????# # #?????????????? | | ??????????????????????# # #?????????????? | | ??????????????????????# #####+####?????????????? | | ??????????????????????+ #???# #????????????????? | | ??????????????????????# #???# #???????########## | | ??????????????????????# #???# #???????# = | | ?????????????????????? ! ???# #???????# | | ????????# ############ #??# #???##### = | | ????????# Y #??# ##### # """"""" | | ????????# ##### ##/### #??# + """"""" | | ??????????????# # ## ??##+##### # """"""" | | ??????????????# #! !####+###? ## ## """"""" | | ??????????????# # # #^"""" "## ## | | ??????????????# #!//# """ # """" "## ########### | | ??????????????# #!//+ """ #^"""" "## #?????????? | | ??????????????# #!//# """ # """" T## #?????????? | | ??????????????# # # !# """"^ "## ########### | | ??????????????# ##### # """"^ "## + | | ??????????????? ????###+#### """" "## ###### | | ??????????????? ??????# #??# ## # ! # " | | ??????????????# #?????# #??###/#######*# # T | | ??????????????# #?????# #### #???# #! # " | | ??????????????# #?????# #####%# # | +----------------------------------------------------+ Best States ------------- Heat Dissipation 34 Energy Generation 49 Energy Capacity 870 Matter Stores 300 Matter Capacity 300 Sight Range 21 Terrain Scan Range 16 Terrain Scan Density 10 Armor Coverage 225 Resistance: KI 20 Weapon Shielding 33 Evasion (%) 50 Targeting Accuracy 8 Recoil Reduction 4 Relay Coupler Types 2 Relay Coupler Value 69 Item Schematics ----------------- Huge Storage Unit | -10/Materials | Hacked Hacking Suite | -8/Materials | Scanalyzed Robot Schematics ------------------ M-28 Smith | -8/Materials | Hacked Fabricated ------------ Nothing Repaired ---------- Arm. Wheel | 69% | -10/Materials Imp. Medium Laser | 68% | -10/Materials Imp. Terrain Scanner | 31% | -10/Materials Datajack | 10% | -8/Materials Lgt. Treads | 35% | -8/Materials Arm. Wheel | 13% | -8/Materials Adv. Beam Rifle | 20% | -8/Materials Studied --------- Arm. Wheel | -8/Materials | Hacked Lgt. Treads | -8/Materials | Hacked Minigun | -8/Materials | Hacked Gauss Rifle | -7/Factory | Hacked Alien Tech Used ----------------- None Achievements -------------- Recruitment Drive Challenges ------------ None Game ------ Seed TeslaAntisysArachnoskeleton Manual? 0 Play Time 04:12:50 Cumulative 36.6 hours Start 2025.11.17 @ 17:28:04 End 2025.11.17 @ 22:50:30 Sessions 1 Manual Loads 0 Difficulty Rogue Special Mode None Game No. 17 Rogue 17 Adventurer 0 Explorer 0 Win Type - Total 1 Types 1/0/0/0/0/0/0/0/0/0 Lore% 21 Gallery% 26 Achievement% 33 Wizard Run 0 Options --------- Layout 0 ASCII 0 Keyboard 0 Movement Mouse Keybinds 0 Fullscreen 1 Font 18/SmallcapsGlow Map View 76x50 Zoom Use 0% Tactical HUD 1 Map Filters NONE Filters NONE Steam 1 RUN: 167e665a-0992-475b-aa22-4a3ab6277004